bitfinex/quotes_BTCUSD_20250522
["timestamp","ask_amount","ask_price","bid_price","bid_amount"]
[1747903223156,0.002,110540.0,110530.0,1.29186268]
[1747903223562,0.002,110540.0,110530.0,1.29186301]
[1747903223763,0.25477574,110540.0,110530.0,1.28281627]
[1747903224004,0.24572998,110540.0,110530.0,1.28281627]
[1747903224179,0.24572998,110540.0,110530.0,1.30090999]
[1747903224384,0.24572998,110540.0,110530.0,1.29186317]
[1747903224806,0.24572998,110540.0,110530.0,1.28281627]
[1747903224990,0.24572998,110540.0,110530.0,1.29186317]
[1747903225192,0.27286807,110540.0,110530.0,1.07472856]
[1747903225389,0.27286807,110540.0,110530.0,0.80348856]
[1747903225390,0.27286799,110540.0,110530.0,0.80348856]
[1747903225589,0.26382182,110540.0,110530.0,1.26472221]
[1747903225792,0.26382182,110540.0,110530.0,1.08377587]
[1747903226011,0.25477582,110540.0,110530.0,1.27376936]
[1747903226415,0.27286807,110540.0,110530.0,0.985183]
[1747903227379,0.26382182,110540.0,110530.0,0.985183]
[1747903227558,0.21492998,110540.0,110530.0,1.00252895]
[1747903227854,0.18292998,110540.0,110530.0,1.01157577]
[1747903228063,0.18292998,110540.0,110530.0,0.99348205]
[1747903228285,0.25247582,110540.0,110530.0,0.98848205]
[1747903228600,0.26152182,110540.0,110530.0,0.99048213]
[1747903228831,0.27961448,110540.0,110530.0,0.78589056]
[1747903229055,0.27961448,110540.0,110530.0,0.67979956]
[1747903229240,0.27961513,110540.0,110530.0,0.67979956]
[1747903229705,0.27056913,110540.0,110530.0,0.67979956]
[1747903230564,0.25247582,110540.0,110530.0,0.67979956]
[1747903230779,0.25247582,110540.0,110530.0,0.86979305]
[1747903231025,0.26152182,110540.0,110530.0,0.67979956]
[1747903231244,0.28866073,110540.0,110530.0,0.590254]
[1747903231476,0.26152272,110540.0,110530.0,0.369138]
[1747903232530,0.27056864,110540.0,110530.0,0.369138]
[1747903232958,0.27056791,110540.0,110530.0,2.880349]
[1747903233174,0.24342998,110540.0,110530.0,3.07034257]
[1747903233388,0.24342998,110540.0,110530.0,3.06129871]
[1747903233634,0.24342998,110540.0,110530.0,3.06129879]
[1747903233864,0.25247574,110540.0,110530.0,3.07034578]
[1747903233986,0.25247574,110540.0,110530.0,3.06129879]
[1747903235230,0.0625,110540.0,110530.0,3.07034578]
[1747903235435,0.002,110540.0,110530.0,3.44017808]
[1747903235641,0.002,110540.0,110530.0,3.45277808]
[1747903236275,0.002,110540.0,110530.0,3.47816874]
[1747903236521,0.002,110540.0,110530.0,3.48606874]
[1747903240089,0.002,110540.0,110530.0,3.51802427]
[1747903242004,0.002,110540.0,110530.0,3.51012427]
[1747903242445,0.002,110540.0,110530.0,3.51802427]
[1747903243108,0.002,110540.0,110530.0,3.54515527]
[1747903246015,0.002,110540.0,110530.0,3.53725527]
[1747903246413,0.002,110540.0,110530.0,3.52465527]
[1747903246619,0.002,110540.0,110530.0,3.91517527]
[1747903247023,0.002,110540.0,110530.0,3.91513527]
[1747903247875,0.002,110540.0,110530.0,3.88800427]
[1747903248071,0.002,110540.0,110530.0,3.61680427]
[1747903248280,0.25982239,110540.0,110530.0,1.17838775]
[1747903248482,0.24172998,110540.0,110530.0,1.28949983]
[1747903248690,0.25077574,110540.0,110530.0,1.29854706]
[1747903248906,0.24172998,110540.0,110530.0,1.31664111]
[1747903249126,0.25077574,110540.0,110530.0,1.31664128]
[1747903249545,0.24172998,110540.0,110530.0,1.3256881]
[1747903249743,0.0608,110540.0,110530.0,1.33473484]
[1747903251367,0.0608,110540.0,110530.0,2.04525484]
[1747903254038,0.0608,110540.0,110530.0,2.05516363]
[1747903254415,0.0608,110540.0,110530.0,2.0232081]
[1747903257539,0.0608,110540.0,110530.0,2.01329931]
[1747903258487,0.0608,110540.0,110530.0,2.03868449]
[1747903262983,0.25077574,110540.0,110530.0,1.79375314]
[1747903263266,0.25077574,110540.0,110530.0,1.95836153]
[1747903263412,0.24172998,110540.0,110530.0,1.05784796]
[1747903263588,0.25982239,110540.0,110530.0,0.6880764]
[1747903263794,0.25982239,110540.0,110530.0,0.8807594]
[1747903263993,0.51475032,110540.0,110530.0,0.002]
[1747903264258,0.51475032,110540.0,110530.0,0.342]
[1747903265260,0.51475032,110540.0,110530.0,0.37395553]
[1747903265485,0.25077631,110540.0,110530.0,0.37395553]
[1747903265676,0.25077631,110540.0,110530.0,0.37195553]
[1747903265877,0.25277631,110540.0,110530.0,0.37195553]
[1747903266089,0.25577631,110540.0,110530.0,0.37195553]
[1747903267358,0.51975032,110540.0,110530.0,0.37195553]
[1747903268073,0.60929588,110540.0,110530.0,0.37195553]
[1747903269406,0.34532187,110540.0,110530.0,0.37195553]
[1747903270305,0.69881739,110540.0,110530.0,0.03195553]
[1747903270528,0.25099349,110530.0,110520.0,0.05204]
[1747903270760,1.13067992,110530.0,110500.0,0.04345191]
[1747903270987,0.52215043,110510.0,110500.0,0.04345191]
[1747903271219,1.31925599,110510.0,110500.0,0.04345191]
[1747903271431,1.4087775,110510.0,110500.0,0.04345191]
[1747903271689,1.4087775,110510.0,110500.0,0.03401801]
[1747903272320,1.4089158,110510.0,110500.0,0.03401801]
[1747903272559,1.41874652,110510.0,110500.0,0.03401801]
[1747903273402,1.42174652,110510.0,110500.0,0.03401801]
[1747903274043,1.42474652,110510.0,110500.0,0.03401801]
[1747903275162,0.45321251,110510.0,110500.0,0.03401801]
[1747903275362,1.16089251,110510.0,110500.0,0.03401801]
[1747903275775,0.45321251,110510.0,110500.0,0.03401801]
[1747903275946,1.06154028,110510.0,110500.0,0.03401801]
[1747903276159,0.62514028,110510.0,110500.0,0.03401801]
[1747903276466,0.88911429,110510.0,110500.0,0.03401801]
[1747903276835,0.88911429,110510.0,110500.0,0.00204]
[1747903277044,0.9786358,110510.0,110500.0,0.00204]
[1747903277452,0.98824934,110510.0,110500.0,0.00204]
[1747903278526,0.18102824,110480.0,110470.0,0.2210434]
[1747903278766,0.19007891,110480.0,110470.0,2.72320258]
[1747903279040,0.19912974,110480.0,110470.0,2.73225448]
[1747903279330,0.18102824,110480.0,110470.0,2.83085186]
[1747903279581,0.20818066,110480.0,110470.0,2.82180004]
[1747903279805,0.23998181,110480.0,110470.0,1.1741133]
[1747903280030,0.23998173,110480.0,110470.0,1.1646613]
[1747903280240,0.23998173,110480.0,110470.0,1.1656613]
[1747903280444,0.2309304,110480.0,110470.0,1.1656613]
[1747903280652,0.23998173,110480.0,110470.0,1.1656613]
[1747903280883,0.2309304,110480.0,110470.0,1.1656613]
[1747903281096,0.23998164,110480.0,110470.0,1.1656613]
[1747903281335,0.26213064,110480.0,110470.0,1.17407014]
[1747903281757,0.26213064,110480.0,110470.0,0.59732014]
[1747903282623,0.25307948,110480.0,110470.0,0.93732014]
[1747903283050,0.25307948,110480.0,110470.0,0.88910414]
[1747903283374,0.26648842,110480.0,110470.0,0.524852]
[1747903283836,0.26648842,110480.0,110470.0,0.53488138]
[1747903286324,0.23528842,110480.0,110470.0,0.53488138]
[1747903286526,0.23528818,110480.0,110470.0,0.53488138]
[1747903286749,0.25339009,110480.0,110470.0,0.53488138]
[1747903287013,0.2624415,110480.0,110470.0,0.53488138]
[1747903287257,0.25339009,110480.0,110470.0,0.54393361]
[1747903287469,0.26244142,110480.0,110470.0,0.53488138]
[1747903287687,0.26244142,110480.0,110470.0,0.524852]
[1747903288222,0.26244142,110480.0,110470.0,0.141353]
[1747903292928,0.26244133,110480.0,110470.0,0.49106178]
[1747903293401,0.21061185,110490.0,110480.0,0.19007948]
[1747903293609,0.19006178,110490.0,110480.0,3.05939256]
[1747903293813,0.19006178,110490.0,110480.0,3.05034156]
[1747903294182,0.24895935,110500.0,110480.0,3.05939215]
[1747903294375,0.50915831,110500.0,110490.0,0.34]
[1747903294579,0.51820808,110500.0,110490.0,0.34]
[1747903295025,0.23775831,110500.0,110490.0,0.34]
[1747903295244,0.246808,110500.0,110490.0,0.34]
[1747903295456,0.247808,110500.0,110490.0,0.34]
[1747903295861,0.27076174,110500.0,110490.0,0.34]
[1747903296063,0.26171254,110500.0,110490.0,0.34]
[1747903296268,0.26071254,110500.0,110490.0,0.34]
[1747903297230,0.18101185,110490.0,110480.0,0.62867621]
[1747903297428,0.19006186,110490.0,110480.0,1.55422929]
[1747903297634,0.19006186,110490.0,110480.0,1.53548037]
[1747903297813,0.23091196,110490.0,110480.0,1.52642929]
[1747903298016,0.23091196,110490.0,110480.0,1.28099429]
[1747903298240,0.23091196,110490.0,110480.0,1.27194313]
[1747903298485,0.23091196,110490.0,110480.0,1.28099429]
[1747903298836,0.23191196,110490.0,110480.0,1.28099429]
[1747903299011,0.19206178,110490.0,110480.0,1.29004529]
[1747903299210,0.19206178,110490.0,110480.0,1.29004537]
[1747903299414,0.20111179,110490.0,110480.0,1.28099429]
[1747903299942,0.23041179,110490.0,110480.0,1.28099429]
[1747903300108,0.23041179,110490.0,110480.0,1.29004553]
[1747903300976,0.23946197,110490.0,110480.0,1.29004553]
[1747903301194,0.24851215,110490.0,110480.0,1.08186356]
[1747903301393,0.23946189,110490.0,110480.0,1.28099437]
[1747903301615,0.23041179,110490.0,110480.0,1.29004545]
[1747903302050,0.23041179,110490.0,110480.0,1.29995393]
[1747903302281,0.19206178,110490.0,110480.0,1.33880493]
[1747903302500,0.1920617,110490.0,110480.0,1.33880485]
[1747903302723,0.2011118,110490.0,110480.0,1.31984545]
[1747903302933,0.1920617,110490.0,110480.0,1.31984545]
[1747903303156,0.2011118,110490.0,110480.0,1.31079437]
[1747903303374,0.2011118,110490.0,110480.0,1.28099445]
[1747903303594,0.2335118,110490.0,110480.0,1.27194321]
[1747903303799,0.24256206,110490.0,110480.0,1.28099454]
[1747903304003,0.23351171,110490.0,110480.0,1.29909686]
[1747903304213,0.23351171,110490.0,110480.0,1.29909694]
[1747903304417,0.24276197,110490.0,110480.0,0.992318]
[1747903304573,0.24276197,110490.0,110480.0,1.00136941]
[1747903304774,0.25181239,110490.0,110480.0,1.00136941]
[1747903305014,0.28261239,110490.0,110480.0,0.992318]
[1747903305217,0.27356304,110490.0,110480.0,0.34]
[1747903305417,0.26451278,110490.0,110480.0,0.34]
[1747903305615,0.25546236,110490.0,110480.0,0.34]
[1747903316262,0.1991485,110470.0,110460.0,0.00204]
[1747903316475,0.2613485,110470.0,110460.0,0.34204]
[1747903316685,0.2613485,110470.0,110460.0,0.00204]
[1747903317543,0.2613485,110470.0,110460.0,0.00255112]
[1747903317747,0.2613485,110470.0,110460.0,0.00555112]
[1747903318159,0.30891949,110470.0,110460.0,0.00455112]
[1747903318361,0.2613485,110470.0,110460.0,0.00455112]
[1747903318569,0.2613485,110470.0,110460.0,0.00555112]
[1747903322358,0.5327485,110470.0,110460.0,0.00555112]
[1747903322761,0.2613485,110470.0,110460.0,0.00555112]
[1747903322961,0.5327885,110470.0,110460.0,0.00555112]
[1747903323907,0.5327885,110470.0,110460.0,0.00355112]
[1747903324113,0.52373668,110470.0,110460.0,0.00355112]
[1747903324344,0.2613485,110470.0,110460.0,0.00355112]
[1747903324561,0.5016885,110470.0,110460.0,0.00355112]
[1747903325971,0.52413668,110470.0,110460.0,0.00355112]
[1747903326179,0.67673423,110470.0,110460.0,0.00355112]
[1747903326397,0.61368224,110470.0,110460.0,0.00355112]
[1747903326619,0.52413668,110470.0,110460.0,0.00355112]
[1747903326822,0.49263668,110470.0,110460.0,0.82895212]
[1747903327033,0.22119668,110470.0,110460.0,0.82895212]
[1747903327241,0.22119668,110470.0,110460.0,0.82795212]
[1747903327447,0.22519668,110470.0,110460.0,0.82895212]
[1747903327647,0.22519668,110470.0,110460.0,0.82695212]
[1747903328058,0.22819668,110470.0,110460.0,0.82795212]
[1747903329295,0.24630073,110470.0,110460.0,0.82795212]
[1747903329491,0.2151999,110470.0,110460.0,1.01806618]
[1747903329708,0.22425196,110470.0,110460.0,0.85845212]
[1747903329917,0.23330419,110470.0,110460.0,0.85845212]
[1747903330177,0.21520039,110470.0,110460.0,0.85845212]
[1747903330340,0.22425172,110470.0,110460.0,1.04856618]
[1747903330540,0.22425172,110470.0,110460.0,1.03951313]
[1747903330748,0.22425156,110470.0,110460.0,0.85845212]
[1747903330951,0.22425205,110470.0,110460.0,0.85845212]
[1747903331163,0.22425205,110470.0,110460.0,1.03951313]
[1747903331365,0.23330419,110470.0,110460.0,1.04856618]
[1747903331582,0.23330469,110470.0,110460.0,0.85845212]
[1747903331827,0.007,110470.0,110460.0,1.06667128]
[1747903332076,0.19709611,110470.0,110460.0,1.08991881]
[1747903332284,0.21519974,110470.0,110460.0,1.06667161]
[1747903332950,0.20614784,110470.0,110460.0,0.72667161]
[1747903333070,0.21519974,110470.0,110460.0,0.72667161]
[1747903333282,0.007,110470.0,110460.0,0.76792408]
[1747903333503,0.01605149,110470.0,110460.0,0.76792408]
[1747903333851,0.20614784,110470.0,110460.0,1.11697672]
[1747903333980,0.01605149,110470.0,110460.0,1.11697672]
[1747903334165,0.02510306,110470.0,110460.0,1.1169768]
[1747903334387,0.22425123,110470.0,110460.0,1.10792384]
[1747903334583,0.007,110470.0,110460.0,1.11697631]
[1747903334810,0.02510314,110470.0,110460.0,1.11697631]
[1747903335019,0.20614776,110470.0,110460.0,1.10792384]
[1747903335239,0.21519958,110470.0,110460.0,1.10792384]
[1747903335439,0.21519958,110470.0,110460.0,1.37936384]
[1747903336247,0.21519958,110470.0,110460.0,1.38841631]
[1747903336494,0.01605149,110470.0,110460.0,1.38841631]
[1747903336707,0.007,110470.0,110460.0,1.38841631]
[1747903336892,0.02510314,110470.0,110460.0,1.38841631]
[1747903337138,0.21519958,110470.0,110460.0,1.38841631]
[1747903337348,0.01605149,110470.0,110460.0,1.35621631]
[1747903337552,0.02510314,110470.0,110460.0,1.35621631]
[1747903337675,0.01605149,110470.0,110460.0,1.35621631]
[1747903337884,0.02510314,110470.0,110460.0,1.35621631]
[1747903338544,0.21519958,110470.0,110460.0,1.35621631]
[1747903338686,0.20214776,110470.0,110460.0,1.35521631]
[1747903338916,0.25446236,110490.0,110470.0,0.5481999]
[1747903339130,0.05059995,110490.0,110480.0,2.71939248]
[1747903339454,0.21016181,110490.0,110480.0,2.71034165]
[1747903339619,0.21921215,110490.0,110480.0,2.71939265]
[1747903339813,0.21016181,110490.0,110480.0,2.71939257]
[1747903340021,0.02914988,110490.0,110480.0,2.7590434]
[1747903340289,0.21921207,110490.0,110480.0,2.74999265]
[1747903340484,0.21921207,110490.0,110480.0,2.71939265]
[1747903340893,0.23226266,110490.0,110480.0,2.71034181]
[1747903341109,0.25461207,110490.0,110480.0,0.59268505]
[1747903341319,0.25061207,110490.0,110480.0,0.59268505]
[1747903341537,0.25061281,110490.0,110480.0,0.31887465]
[1747903341762,0.25161273,110490.0,110480.0,0.66792581]
[1747903342015,0.25161281,110490.0,110480.0,0.66792581]
[1747903342421,0.24256222,110490.0,110480.0,0.66792581]
[1747903342630,0.25161273,110490.0,110480.0,0.66792581]
[1747903343049,0.23351188,110490.0,110480.0,0.66792581]
[1747903343326,0.23351188,110490.0,110480.0,0.68602781]
[1747903343327,0.24256206,110490.0,110480.0,0.68602781]
[1747903343526,0.2516124,110490.0,110480.0,0.68602789]
[1747903343730,0.2516124,110490.0,110480.0,0.66792581]
[1747903343952,0.26066291,110490.0,110480.0,0.66792589]
[1747903344158,0.26066291,110490.0,110480.0,0.93932589]
[1747903344559,0.2516124,110490.0,110480.0,0.94837697]
[1747903344857,0.2516124,110490.0,110480.0,0.94837705]
[1747903345068,0.2516124,110490.0,110480.0,0.95742813]
[1747903345288,0.2516124,110490.0,110480.0,0.94837705]
[1747903345665,0.2516124,110490.0,110480.0,0.67697705]
[1747903345996,0.2516124,110490.0,110480.0,0.93932581]
[1747903346345,0.26066291,110490.0,110480.0,0.93932589]
[1747903346554,0.2516124,110490.0,110480.0,0.93932589]
[1747903348046,0.2516124,110490.0,110480.0,0.93027465]
[1747903348254,0.26066291,110490.0,110480.0,0.66792598]
[1747903348455,0.26066291,110490.0,110480.0,0.93932598]
[1747903349030,0.2516124,110490.0,110480.0,0.94837722]
[1747903349456,0.26066291,110490.0,110480.0,0.93932598]
[1747903349655,0.2516124,110490.0,110480.0,0.93932598]
[1747903350385,0.2516124,110490.0,110480.0,0.89837722]
[1747903350594,0.2516124,110490.0,110480.0,0.88932598]
[1747903350794,0.26066282,110490.0,110480.0,0.88932598]
[1747903352244,0.24256206,110490.0,110480.0,0.6360283]
[1747903352388,0.2516124,110490.0,110480.0,0.61792598]
[1747903352588,0.26066291,110490.0,110480.0,0.61792598]
[1747903352790,0.26066291,110490.0,110480.0,0.60887465]
[1747903353005,0.29026291,110490.0,110480.0,0.61792598]
[1747903353184,0.2516124,110490.0,110480.0,0.62697722]
[1747903353407,0.2516124,110490.0,110480.0,0.61792598]
[1747903353663,0.0344,110490.0,110480.0,0.62697706]
[1747903353877,0.003,110490.0,110480.0,0.78787345]
[1747903354086,0.003,110490.0,110480.0,0.8600463]
[1747903354743,0.002,110490.0,110480.0,0.78787345]
[1747903355165,0.002,110490.0,110480.0,0.78887345]
[1747903356230,0.002,110490.0,110480.0,0.78987345]
[1747903356457,0.002,110490.0,110480.0,0.80727865]
[1747903357746,0.002,110490.0,110480.0,0.78987345]
[1747903360301,0.18301185,110490.0,110480.0,0.75837345]
[1747903360540,0.18301185,110490.0,110480.0,0.88223448]
[1747903360541,0.2330118,110490.0,110480.0,0.88223448]
[1747903360722,0.23301171,110490.0,110480.0,0.90033648]
[1747903360955,0.23301171,110490.0,110480.0,0.90938748]
[1747903361159,0.002,110490.0,110480.0,1.03083295]
[1747903361590,0.19206178,110490.0,110480.0,0.98988195]
[1747903361745,0.22396178,110490.0,110480.0,0.98988204]
[1747903361950,0.22396178,110490.0,110480.0,0.99893287]
[1747903362176,0.22396178,110490.0,110480.0,0.9808312]
[1747903362379,0.21491185,110490.0,110480.0,0.97178021]
[1747903362589,0.002,110490.0,110480.0,0.99893345]
[1747903362790,0.002,110490.0,110480.0,1.04862395]
[1747903362969,0.18301185,110490.0,110480.0,1.04862395]
[1747903363174,0.21251185,110490.0,110480.0,0.99862204]
[1747903363379,0.2306118,110490.0,110480.0,0.99862204]
[1747903363728,0.2215617,110490.0,110480.0,1.00767312]
[1747903364227,0.23061171,110490.0,110480.0,0.99862204]
[1747903364436,0.23966189,110490.0,110480.0,0.99862204]
[1747903364642,0.23061171,110490.0,110480.0,1.00767328]
[1747903364853,0.23061171,110490.0,110480.0,1.01672444]
[1747903365051,0.2215617,110490.0,110480.0,1.01672444]
[1747903365305,0.21251185,110490.0,110480.0,1.01672403]
[1747903365733,0.22156178,110490.0,110480.0,1.01672411]
[1747903365951,0.22156178,110490.0,110480.0,1.00767303]
[1747903366162,0.22156178,110490.0,110480.0,0.99862187]
[1747903366163,0.23061188,110490.0,110480.0,0.99862187]
[1747903366891,0.18301185,110490.0,110480.0,1.02902187]
[1747903367104,0.18301185,110490.0,110480.0,1.03807287]
[1747903367801,0.18301185,110490.0,110480.0,1.02902187]
[1747903368008,0.002,110490.0,110480.0,1.04712378]
[1747903368177,0.002,110490.0,110480.0,1.07682378]
[1747903369362,0.002,110490.0,110480.0,1.10218609]
[1747903369577,0.002,110490.0,110480.0,1.08439559]
[1747903371515,0.002,110490.0,110480.0,0.8569668]
[1747903371722,0.002,110490.0,110480.0,0.83160449]
[1747903371938,0.002,110490.0,110480.0,3.21402049]
[1747903373980,0.002,110490.0,110480.0,3.23210646]
[1747903375654,0.002,110490.0,110480.0,3.26370646]
[1747903377448,0.002,110490.0,110480.0,3.62574646]
[1747903377668,0.002,110490.0,110480.0,3.60766049]
[1747903378543,0.002,110510.0,110500.0,0.6114438]
[1747903378757,0.002,110510.0,110500.0,4.14479536]
[1747903379813,0.003,110510.0,110500.0,4.17244548]
[1747903380241,0.003,110510.0,110500.0,4.56312548]
[1747903380871,0.004,110510.0,110500.0,4.56312548]
[1747903381080,0.004,110510.0,110500.0,4.58848623]
[1747903381307,0.002,110510.0,110500.0,4.58848623]
[1747903381515,0.002,110510.0,110500.0,4.58948623]
[1747903381723,0.002,110510.0,110500.0,4.60374018]
[1747903382142,0.002,110510.0,110500.0,4.60274018]
[1747903382341,0.002,110510.0,110500.0,3.90334018]
[1747903382560,0.002,110510.0,110500.0,4.57110018]
[1747903383181,0.002,110510.0,110500.0,4.57010018]
[1747903383387,0.002,110510.0,110500.0,4.57310018]
[1747903384209,0.002,110510.0,110500.0,3.87774018]
[1747903384411,0.002,110510.0,110500.0,4.57710018]
[1747903384621,0.002,110510.0,110500.0,3.87774018]
[1747903384985,0.07064821,110510.0,110500.0,3.28076548]
[1747903385206,0.07969659,110510.0,110500.0,4.04876548]
[1747903385415,0.26067568,110510.0,110500.0,4.04876548]
[1747903385570,0.27877301,110510.0,110500.0,3.50062168]
[1747903385793,0.26972422,110510.0,110500.0,3.7087658]
[1747903386004,0.26972422,110510.0,110500.0,4.03971644]
[1747903386218,0.27877342,110510.0,110500.0,3.75232149]
[1747903386419,0.27877342,110510.0,110500.0,3.75232157]
[1747903386633,0.27877342,110510.0,110500.0,3.75432165]
[1747903386834,0.27877342,110510.0,110500.0,3.76337117]
[1747903387047,0.27877342,110510.0,110500.0,3.75432165]
[1747903387216,0.27877342,110510.0,110500.0,3.74127205]
[1747903387435,0.27877342,110510.0,110500.0,3.75032165]
[1747903387780,0.27877342,110510.0,110500.0,3.73422236]
[1747903387979,0.27877342,110510.0,110500.0,2.95814212]
[1747903388185,0.27877391,110510.0,110500.0,2.95814212]
[1747903388390,0.27877391,110510.0,110500.0,3.29814212]
[1747903388564,0.26067625,110510.0,110500.0,3.48818728]
[1747903388733,0.26972504,110510.0,110500.0,3.49723688]
[1747903388938,0.26972504,110510.0,110500.0,3.48818728]
[1747903389133,0.26972504,110510.0,110500.0,3.48822728]
[1747903389342,0.27877399,110510.0,110500.0,3.48822728]
[1747903389641,0.27877399,110510.0,110500.0,3.30723189]
[1747903389843,0.27877399,110510.0,110500.0,3.29818212]
[1747903390247,0.27877399,110510.0,110500.0,3.33001728]
[1747903391059,0.26972545,110510.0,110500.0,3.29818212]
[1747903391669,0.26972545,110510.0,110500.0,3.29618212]
[1747903392066,0.26972545,110510.0,110500.0,3.29718212]
[1747903392655,0.26972545,110510.0,110500.0,2.36081412]
[1747903392886,0.26972545,110510.0,110500.0,1.09622112]
[1747903392887,0.26067683,110510.0,110500.0,1.09622112]
[1747903393082,0.26067683,110510.0,110500.0,1.09422112]
[1747903393340,0.26067683,110510.0,110500.0,0.70354112]
[1747903393560,0.26067683,110510.0,110500.0,0.36454112]
[1747903394174,0.53195683,110510.0,110500.0,0.36354112]
[1747903394306,0.53195683,110510.0,110500.0,0.36254112]
[1747903394514,0.53695683,110510.0,110500.0,0.36254112]
[1747903398417,0.53695683,110510.0,110500.0,0.70254112]
[1747903401244,0.53699683,110510.0,110500.0,0.70254112]
[1747903402246,0.7160639,110510.0,110500.0,0.70254112]
[1747903403074,0.62654239,110510.0,110500.0,0.70254112]
[1747903405268,0.26567683,110510.0,110500.0,0.70254112]
[1747903405466,0.53699683,110510.0,110500.0,1.55104512]
[1747903405643,0.53699683,110510.0,110500.0,0.95670612]
[1747903406290,0.53699683,110510.0,110500.0,0.81450512]
[1747903406674,0.53699683,110510.0,110500.0,0.70254112]
[1747903407117,0.53699683,110510.0,110500.0,0.81424212]
[1747903407624,0.53699683,110510.0,110500.0,0.70254112]
[1747903408116,0.53699683,110510.0,110500.0,0.95104412]
[1747903408320,0.53699683,110510.0,110500.0,0.70254112]
[1747903409174,0.53699683,110510.0,110500.0,1.03715912]
[1747903409349,0.53699683,110510.0,110500.0,0.70254112]
[1747903409756,0.53699683,110510.0,110500.0,0.80515912]
[1747903409959,0.53699683,110510.0,110500.0,0.70254112]
[1747903411197,0.53699683,110510.0,110500.0,0.86050512]
[1747903411408,0.53699683,110510.0,110500.0,0.70254112]
[1747903412070,0.53699683,110510.0,110500.0,1.04100512]
[1747903413225,0.26367683,110510.0,110500.0,1.04100512]
[1747903413433,0.52423349,110510.0,110500.0,1.04100512]
[1747903414032,0.52123349,110510.0,110500.0,1.04100512]
[1747903414503,0.52223349,110510.0,110500.0,1.04100512]
[1747903415449,0.25087349,110510.0,110500.0,1.04100512]
[1747903416435,0.24182454,110510.0,110500.0,1.04100512]
[1747903416658,0.25087341,110510.0,110500.0,1.04100512]
[1747903417347,0.25992236,110510.0,110500.0,1.31232512]
[1747903417564,0.004,110510.0,110500.0,1.63991448]
[1747903417764,0.1940273,110510.0,110500.0,1.63086528]
[1747903417979,0.1940273,110510.0,110500.0,1.63991464]
[1747903418179,0.1940273,110510.0,110500.0,1.64896392]
[1747903418387,0.1940273,110510.0,110500.0,1.65801312]
[1747903418735,0.21212413,110510.0,110500.0,1.63991464]
[1747903418943,0.25027267,110510.0,110500.0,1.59191584]
[1747903419147,0.24122397,110510.0,110500.0,1.60096528]
[1747903419355,0.24122397,110510.0,110500.0,1.61001464]
[1747903419555,0.24122397,110510.0,110500.0,1.61906392]
[1747903419760,0.24122397,110510.0,110500.0,1.61001464]
[1747903419960,0.25027309,110510.0,110500.0,1.40187068]
[1747903420163,0.23217642,110510.0,110500.0,1.73836512]
[1747903420379,0.26147642,110510.0,110500.0,0.36254112]
[1747903420586,0.26147642,110510.0,110500.0,0.70254112]
[1747903421069,0.26147642,110510.0,110500.0,1.01288412]
[1747903421352,0.26147642,110510.0,110500.0,0.70254112]
[1747903422952,0.26147642,110510.0,110500.0,0.87072112]
[1747903423692,0.26147642,110510.0,110500.0,0.70033825]
[1747903424088,0.25242788,110510.0,110500.0,0.70033825]
[1747903426402,0.24337909,110510.0,110500.0,0.70033825]
[1747903427759,0.24337909,110510.0,110500.0,0.53215825]
[1747903432373,0.24337909,110510.0,110500.0,0.85446825]
[1747903432587,0.22312788,110510.0,110500.0,0.85446825]
[1747903432822,0.24122512,110510.0,110500.0,1.03546372]
[1747903433030,0.24122512,110510.0,110500.0,0.85446825]
[1747903433233,0.23217658,110510.0,110500.0,0.85446825]
[1747903434646,0.23217658,110510.0,110500.0,1.12582825]
[1747903436669,0.23217658,110510.0,110500.0,0.86351802]
[1747903437097,0.23217658,110510.0,110500.0,0.85446825]
[1747903437339,0.20307658,110510.0,110500.0,0.90236771]
[1747903437559,0.004,110510.0,110500.0,1.15480928]
[1747903437763,0.004,110510.0,110500.0,0.79127825]
[1747903437764,0.23257592,110510.0,110500.0,0.79127825]
[1747903437894,0.26427642,110510.0,110500.0,0.63225925]
[1747903438309,0.26427642,110510.0,110500.0,0.65640625]
[1747903439301,0.58012048,110510.0,110500.0,0.19215825]
[1747903439510,0.84409449,110510.0,110500.0,0.00055112]
[1747903439724,0.58012048,110510.0,110500.0,0.00055112]
[1747903440081,0.53559642,110510.0,110500.0,0.00055112]
[1747903444763,0.88911599,110510.0,110500.0,0.00055112]
[1747903445513,0.90245331,110510.0,110500.0,0.00055112]
[1747903445906,0.90045331,110510.0,110500.0,0.00055112]
[1747903446542,0.90912462,110510.0,110500.0,0.00055112]
[1747903446975,0.99864613,110510.0,110500.0,0.00055112]
[1747903447398,1.00564613,110510.0,110500.0,0.00255112]
[1747903448707,0.73432613,110510.0,110500.0,0.00255112]
[1747903448923,0.63885329,110510.0,110500.0,0.00255112]
[1747903449714,0.63018198,110510.0,110500.0,0.00255112]
[1747903455141,0.89415599,110510.0,110500.0,0.00255112]
[1747903455914,0.18102824,110480.0,110470.0,0.96637551]
[1747903456114,0.19007907,110480.0,110470.0,3.43833715]
[1747903456361,0.18102824,110480.0,110470.0,2.7542288]
[1747903456559,0.19007899,110480.0,110470.0,3.16701715]
[1747903457283,0.19007899,110480.0,110470.0,3.16701724]
[1747903457488,0.18102824,110480.0,110470.0,3.17706889]
[1747903457687,0.19007899,110480.0,110470.0,3.14990493]
[1747903457887,0.19007899,110480.0,110470.0,3.49090493]
[1747903458373,0.19912342,110500.0,110480.0,0.2469324]
[1747903458575,0.19912342,110500.0,110480.0,0.92977629]
[1747903458576,0.19006186,110490.0,110480.0,0.92977629]
[1747903458803,0.19006186,110490.0,110480.0,3.31219229]
[1747903459024,0.19911204,110490.0,110480.0,3.34239229]
[1747903459239,0.19911204,110490.0,110480.0,3.36049404]
[1747903459448,0.19911204,110490.0,110480.0,3.35144321]
[1747903459652,0.20816238,110490.0,110480.0,3.33334113]
[1747903459863,0.19911204,110490.0,110480.0,3.31269229]
[1747903460037,0.19911204,110490.0,110480.0,3.32174329]
[1747903460446,0.20816238,110490.0,110480.0,3.32174329]
[1747903460653,0.19911204,110490.0,110480.0,3.32174329]
[1747903461010,0.20816238,110490.0,110480.0,3.32174329]
[1747903461392,0.2091623,110490.0,110480.0,3.32174329]
[1747903461595,0.2091623,110490.0,110480.0,3.32174337]
[1747903461791,0.20011204,110490.0,110480.0,3.33079437]
[1747903462158,0.20011204,110490.0,110480.0,3.32174337]
[1747903462363,0.20916238,110490.0,110480.0,3.33079437]
[1747903462787,0.21016238,110490.0,110480.0,3.33079437]
[1747903463412,0.21016329,110490.0,110480.0,2.722416]
[1747903463590,0.26826329,110490.0,110480.0,2.805388]
[1747903463968,0.26826329,110490.0,110480.0,2.534028]
[1747903463969,0.25921295,110490.0,110480.0,2.534028]
[1747903464775,0.25921295,110490.0,110480.0,2.54307941]
[1747903465141,0.25016244,110490.0,110480.0,2.162886]
[1747903465367,0.25016244,110490.0,110480.0,1.959959]
[1747903465571,0.25016244,110490.0,110480.0,2.299959]